Cogmind - Beta 13 @@@ ROGUE MODE // 2024.07.25 @ 08:32:00 Player: Eggywontgrow Result: Destroyed by Dirty Bomb Trap Performance ------------- Evolutions (0) 0 Regions Visited (4) 800 Robots Destroyed (17) 85 Value Destroyed (291) 291 Prototype IDs (24) 480 Alien Tech Used (0) 0 Bonus (325) 325 TOTAL SCORE: 1981 Bonus ------- Follower Combat Kills 25 Aligned with FarCom 300 Cogmind --------- Core Integrity 0/250 Matter 295/300 Energy 93/100 System Corruption 8% Temperature Cool (0) Movement Core (50) Location -9/Mines Parts ------- > --- POWER (1) -------- (None) > --- PROPULSION (2) --- (None) > --- UTILITY (2) ------ Experimental Sensor Array > --- WEAPON (2) ------- (None) > --- INVENTORY (5) ---- Particle Gun Assault Rifle Heavy Explosive Trap Heavy Explosive Trap Peak State ------------ > --- POWER ------------ Ion Engine > --- PROPULSION ------- (None) > --- UTILITY ---------- High-capacity Storage Unit Experimental Sensor Array > --- WEAPON ----------- Particle Gun Longsword +1 > --- INVENTORY -------- Ion Engine Ion Engine Light Nuclear Core Light Nuclear Core Improved Heat Sink Structural Scanner Terrain Scan Processor Seismic Detector Particle Gun Beamcaster Assault Rifle Heavy Explosive Trap Heavy Explosive Trap Heavy Explosive Trap Heavy Explosive Trap Heavy Explosive Trap [Rating: 23] Favorites ----------- Power Ion Engine Engine Ion Engine Propulsion Light Treads Treads Light Treads Utility Seismic Detector Device Seismic Detector Storage High-capacity Storage Unit Weapon Particle Gun Energy Gun Particle Gun Ballistic Gun Assault Rifle Slashing Weapon Longsword +1 Build | -11 -10 -10 -10 -9 ------- Run | Yrd Mat Min Exi Min Slots Evolved . | . . . . . Power . | . . . . . Propulsion . | . . . . . Utility . | . . . . . Weapon . | . . . . . Parts Attached 14 | 7 1 3 . 3 Power 2 | 1 . 1 . . Engine 2 | 1 . 1 . . Core . | . . . . . Reactor . | . . . . . Propulsion 2 | 2 . . . . Treads 2 | 2 . . . . Leg . | . . . . . Wheel . | . . . . . Hover . | . . . . . Flight . | . . . . . Utility 5 | 2 1 . . 2 Device 3 | 1 . . . 2 Storage 2 | 1 1 . . . Processor . | . . . . . Hackware . | . . . . . Protection . | . . . . . Artifact . | . . . . . Weapon 5 | 2 . 2 . 1 Energy Gun 3 | 1 . 2 . . Energy Cannon . | . . . . . Ballistic Gun 1 | 1 . . . . Ballistic Cannon . | . . . . . Launcher . | . . . . . Special Weapon . | . . . . . Impact Weapon . | . . . . . Slashing Weapon 1 | . . . . 1 Piercing Weapon . | . . . . . Special Melee Weapon . | . . . . . Unidentified Prototypes 1 | . . . . 1 Parts Lost 5 | . . . . 5 Power 1 | . . . . 1 Propulsion 2 | . . . . 2 Utility 1 | . . . . 1 Weapon 1 | . . . . 1 Highest Loss Streak 4 | . . . . 4 To Critical Strikes . | . . . . . Average Slot Usage (%) 98 | . 100 100 100 90 Engine 13 | . 14 14 14 12 Treads 27 | . 28 28 28 24 Device 14 | . 14 14 14 14 Storage 13 | . 14 14 14 12 Energy Gun 19 | . 14 16 28 24 Ballistic Gun 7 | . 14 11 . . Naked Turns . | . . . . . Heaviest Build 52 | 15 50 52 52 52 Greatest Support 40 | 40 40 40 40 40 Greatest Overweight (x) 2 | 2 1 1 1 2 Average Overweight (x) . | . . 1 1 . Largest Inventory Capacity 20 | 8 20 20 20 20 Average Capacity 19 | 6 18 20 20 18 Most Carried 20 | 3 4 20 18 16 Average Carried 13 | 2 3 12 16 14 Final Capacity 20 | 8 20 20 20 5 Final Carried 17 | 2 4 17 16 4 Class Distribution -------------------- 56% | Mutant 41% | Scavenger-Mutant Dominant Class ---------------- Mutant | -10/Materials Mutant | -10/Mines Scavenger-Mutant | -10/Exiles Scavenger-Mutant | -9/Mines Resources | -11 -10 -10 -10 -9 ----------- Run | Yrd Mat Min Exi Min Matter Collected 383 | 150 . 223 . 10 Remotely . | . . . . . Salvage Created 420 | 24 . 396 . . Parts 47 | 3 . 44 . . Haulers Intercepted . | . . . . . Recyclers Shooed 3 | . . 2 . 1 Parts Field Recycled . | . . . . . Retrieved Matter . | . . . . . Parts Self-Destructed . | . . . . . Prevented . | . . . . . Kills | -11 -10 -10 -10 -9 ------- Run | Yrd Mat Min Exi Min Combat Hostiles Destroyed 11 | . . 11 . . Guns 11 | . . 11 . . Classes Destroyed 6 | 1 . 5 . . Worker 2 | . . 2 . . Builder 2 | . . 2 . . Tunneler 1 | 1 . . . . Recycler 1 | . . 1 . . Swarmer 6 | . . 6 . . Grunt 5 | . . 5 . . Best Kill Streak 4 | 1 . 4 . . Combat Bots Only 3 | . . 3 . . Max Kills in Single Turn 1 | 1 . 1 . . Gunslinging . | . . . . . Exploded . | . . . . . Melee . | . . . . . Uniques/NPCs Destroyed . | . . . . . Combat | -11 -10 -10 -10 -9 -------- Run | Yrd Mat Min Exi Min Hostile Shots Fired 88 | . . 42 . 46 Missed 25 | . . 14 . 11 Damage Taken 799 | . . 274 . 525 Core 265 | . . 56 . 209 Absorbed by Shields . | . . . . . Core Remaining (%) 100 | 100 . . . . Volleys Fired 22 | 1 . 21 . . Largest 2 | 2 . 2 . . Hottest 85 | 70 . 85 . . Shots Fired 44 | 2 . 42 . . Gun 44 | 2 . 42 . . Cannon . | . . . . . Launcher . | . . . . . Special . | . . . . . Kinetic 22 | 1 . 21 . . Thermal 22 | 1 . 21 . . Explosive . | . . . . . Electromagnetic . | . . . . . Robot Hit Streak 12 | 2 . 12 . . Robot Miss Streak 2 | . . 2 . . Penetration Max . | . . . . . Secondary Targets 4 | . . 4 . . Max Gunslinging Chain 1 | . . 1 . . Shots Hit Robots 35 | 2 . 32 . 1 Core Hits 19 | 1 . 17 . 1 Critical Kills . | . . . . . Critical Parts Destroyed . | . . . . . Critical Strikes 1 | 1 . . . . Burn 1 | 1 . . . . Melee Attacks 2 | . . . . 2 Impact . | . . . . . Slashing 2 | . . . . 2 Piercing . | . . . . . Sneak Attacks . | . . . . . Combat Hostiles . | . . . . . Follow-up Attacks . | . . . . . Damage Inflicted 582 | 26 . 500 . 56 Guns 497 | 26 . 471 . . Cannons . | . . . . . Explosions . | . . . . . Melee 43 | . . . . 43 Ramming 42 | . . 29 . 13 Kinetic 262 | 13 . 249 . . Thermal 235 | 13 . 222 . . Explosive . | . . . . . Electromagnetic . | . . . . . Impact . | . . . . . Slashing 43 | . . . . 43 Piercing . | . . . . . Highest Corruption 8 | . . . . 8 Average Corruption 3 | . . . . 3 Corruption Purged . | . . . . . Corruption Blocked . | . . . . . Effects 2 | . . . . 2 Message Errors 1 | . . . . 1 Data Loss (major) 1 | . . . . 1 Overload Shots . | . . . . . Overflow Damage 13 | . . . . 13 Projectiles . | . . . . . Explosions . | . . . . . Melee 13 | . . . . 13 Knockbacks . | . . . . . Impact . | . . . . . Kinetic . | . . . . . Secondary . | . . . . . Self-Inflicted Damage 6 | . . . . 6 Shots . | . . . . . Rammed 5 | . . 2 . 3 Targets Rammed 8 | . . 5 . 3 Kicked . | . . . . . Crushed 3 | . . 3 . . Highest Temperature 108 | 9 . 108 . 2 Average Temperature 37 | 6 . 43 . 1 Received Heat Transfer 510 | . . 90 . 420 Siege Activations . | . . . . . Robots Corrupted . | . . . . . Combat Hostiles . | . . . . . Parts Fried . | . . . . . Impact Corruptions . | . . . . . Robots Melted . | . . . . . Combat Hostiles . | . . . . . Parts Melted 2 | 1 . 1 . . Heat Transferred 703 | 111 . 592 . . Parts Sabotaged . | . . . . . Parts Stolen . | . . . . . Parts Stripped . | . . . . . Power Chain Reactions . | . . . . . Alert | -11 -10 -10 -10 -9 ------- Run | Yrd Mat Min Exi Min Peak Influence 213 | 5 7 213 . 15 Initial 3 | . 3 2 . . Average 36 | . 5 48 . . Maximum Alert Level 1 | . . 1 . . Low Security (%) 99 | 100 100 99 . 100 Level 1 . | . . . . . Level 2 . | . . . . . Level 3 . | . . . . . Level 4 . | . . . . . Level 5 . | . . . . . High Security . | . . . . . Max Security . | . . . . . Squads Dispatched 3 | . 2 1 . . Investigation 3 | . 2 1 . . Extermination . | . . . . . Reinforcement . | . . . . . Assault . | . . . . . Garrison . | . . . . . Intercept . | . . . . . Searches Triggered . | . . . . . Construction Impeded . | . . . . . Haulers Reinforced . | . . . . . Active Scanning Responses . | . . . . . Cargo Convoy Interrupts . | . . . . . Stealth | -11 -10 -10 -10 -9 --------- Run | Yrd Mat Min Exi Min Distress Signals . | . . . . . Communications Jammed . | . . . . . Distress Signals . | . . . . . Times Spotted 45 | . . 12 . 33 Peak Tracking Total 16 | . . 3 . 16 Tactical Retreats 4 | . . . . 4 Traps | -11 -10 -10 -10 -9 ------- Run | Yrd Mat Min Exi Min Traps Triggered 1 | . 1 . . . Indirectly . | . . . . . Trap Hack Attempts . | . . . . . Triggered . | . . . . . Disarmed . | . . . . . Reprogrammed . | . . . . . Reused . | . . . . . Traps Extracted . | . . . . . Installed . | . . . . . Triggered . | . . . . . Most Traps Carried 5 | . . 5 5 5 Machines | -11 -10 -10 -10 -9 ---------- Run | Yrd Mat Min Exi Min Machines Disabled 1 | . . 1 . . Max in Single Turn 1 | . . 1 . . Machines Repaired . | . . . . . Machines Dismantled . | . . . . . Machines Sabotaged . | . . . . . Overloaded Fab Kills . | . . . . . Hacking | -11 -10 -10 -10 -9 --------- Run | Yrd Mat Min Exi Min Machines Accessed 3 | . 1 1 1 . Terminals 2 | . 1 1 . . Fabricators . | . . . . . Repair Stations . | . . . . . Recycling Units . | . . . . . Scanalyzers . | . . . . . Garrison Access . | . . . . . Total Hacks 10 | . 7 2 1 . Successful 4 | . 2 1 1 . Failed 6 | . 5 1 . . Catastrophic . | . . . . . Database Lockouts . | . . . . . Manual 9 | . 5 3 1 . Terminals 9 | . 7 2 . . Fabricators . | . . . . . Repair Stations . | . . . . . Recycling Units . | . . . . . Scanalyzers . | . . . . . Garrison Access . | . . . . . Terminal Hacks 4 | . 2 1 1 . Robot Analysis 3 | . 2 1 . . Derelict Proto ID Bank 1 | . . . 1 . Fabricator Hacks . | . . . . . Repair Station Hacks . | . . . . . Recycling Unit Hacks . | . . . . . Scanalyzer . | . . . . . Garrison Access Hacks . | . . . . . Unauthorized Hacks . | . . . . . Terminals . | . . . . . Fabricators . | . . . . . Repair Stations . | . . . . . Recycling Units . | . . . . . Scanalyzers . | . . . . . Garrison Access . | . . . . . Data Cores Recovered . | . . . . . Used . | . . . . . Hacking Detections 2 | . 1 1 . . Full Trace Events 2 | . 1 1 . . Feedback Events . | . . . . . Feedback Blocked . | . . . . . Robot Schematics Acquired . | . . . . . Robots Built . | . . . . . Authchips . | . . . . . Time . | . . . . . Total Robot Build Rating . | . . . . . Part Schematics Acquired . | . . . . . Parts Built . | . . . . . Authchips . | . . . . . Time . | . . . . . Total Part Build Rating . | . . . . . Parts Repaired . | . . . . . Time . | . . . . . Parts Recycled . | . . . . . Recycled Matter . | . . . . . Retrieved Matter . | . . . . . Retrieved Components . | . . . . . Parts Scanalyzed . | . . . . . Part Schematics Acquired . | . . . . . Parts Damaged . | . . . . . Bothacking | -11 -10 -10 -10 -9 ------------ Run | Yrd Mat Min Exi Min Used RIF Installer . | . . . . . Robots Hacked . | . . . . . Non-combat . | . . . . . Combat . | . . . . . Robot Hacks Applied . | . . . . . Relay Couplers Released . | . . . . . Fabnet Peak Effective % . | . . . . . Robots Rewired . | . . . . . Allies Hacked . | . . . . . Hacks Repelled . | . . . . . Allies | -11 -10 -10 -10 -9 -------- Run | Yrd Mat Min Exi Min Total Allies 1 | . . 1 . . Largest Group 1 | . . 1 . . Highest-Rated Group 31 | . . 31 . . Highest-Rated Ally 31 | . . 31 . . Total Orders . | . . . . . Ally Attacks 9 | . . 9 . . Total Damage 125 | . . 125 . . Kills 1 | . . 1 . . Allies Corrupted . | . . . . . Allies Melted . | . . . . . Intel | -11 -10 -10 -10 -9 ------- Run | Yrd Mat Min Exi Min Robot Analysis Total 3 | . 2 1 . . Derelict Logs Recovered 1 | . . 1 . . Drone Launches . | . . . . . Drone Recoveries . | . . . . . Exploration | -11 -10 -10 -10 -9 ------------- Run | Yrd Mat Min Exi Min Turns Passed 3340 | 73 87 2070 538 572 Spaces Moved 1438 | 43 38 814 224 319 Core 127 | 17 . . . 110 Treads 1311 | 26 38 814 224 209 Legs . | . . . . . Wheels . | . . . . . Hover . | . . . . . Flight . | . . . . . Fastest Speed 50 | 50 160 240 240 50 Average Speed 221 | 133 223 240 240 174 Slowest Speed 240 | 160 240 240 240 240 Overloaded Moves . | . . . . . Propulsion Burnouts . | . . . . . Robots Hopped . | . . . . . Cave-ins Triggered . | . . . . . Exploration Rate (%) 43 | 4 12 98 61 40 Regions Visited 4 Branch Regions 3 Pre-discovered Areas . | . . . . . Known Exits Taken . | . . . . . Unknown Exits Taken 4 | 1 1 1 1 . Scrap Searched 1 | . . 1 . . Spaces Dug . | . . . . . Terrain Destroyed . | . . . . . Melee . | . . . . . Projectile . | . . . . . AOE . | . . . . . Terrain Rammed . | . . . . . Walls Destroyed . | . . . . . Machines Disabled . | . . . . . Actions | -11 -10 -10 -10 -9 --------- Run | Yrd Mat Min Exi Min Total 1536 | 54 41 884 226 331 Wait 20 | . . 18 . 2 Move 1434 | 42 37 813 223 319 Hop . | . . . . . Pick Up 25 | 4 2 18 1 . Fast Attach 5 | 5 . . . . Attach 3 | 2 . . . 1 Detach . | . . . . . Swap 6 | . 1 3 . 2 Drop 11 | . 1 6 2 2 Fire 22 | 1 . 21 . . Melee 2 | . . . . 2 Ram 3 | . . . . 3 Kick . | . . . . . Crush 5 | . . 5 . . Escape Stasis . | . . . . . Rewire . | . . . . . Trap . | . . . . . Miscellaneous . | . . . . . Route ------- -11/Scrapyard -10/Materials -10/Mines (discovered 3 exits: [*Mat x2] / *Exi) -10/Exiles -9/Mines History --------- Turn | Location | Event 33 | -11/Scrapyard | Discovered new exit (range 15) 74 | -11/Scrapyard | Entered Materials 108 | -10/Materials | Discovered new exit (range 14) 161 | -10/Materials | Entered Mines 300 | -10/Mines | Build established: Mutant 523 | -10/Mines | Learned Materials trap positions 768 | -10/Mines | Found a hidden stash of uninstalled traps 862 | -10/Mines | Found a damaged Exp. Sensor Array with a note attached 867 | -10/Mines | Found Prototype Device 916 | -10/Mines | Discovered new exit (range 10) 1270 | -10/Mines | Escorted by a lone wolf Derelict 1744 | -10/Mines | Discovered new exit (range 12) 2186 | -10/Mines | Build established: Scavenger-Mutant 2222 | -10/Mines | Deemed a non-threat by the Exiles lab entrance 2222 | -10/Mines | Discovered new exit (range 5) 2231 | -10/Mines | Entered Exiles 2289 | -10/Exiles | Met 8R-AWN 2330 | -10/Exiles | Met EX-HEX 2433 | -10/Exiles | Met EX-BIN 2467 | -10/Exiles | Aligned with FarCom system 2469 | -10/Exiles | Given EX-Vault access code 2529 | -10/Exiles | Opened EX-Vault 2541 | -10/Exiles | Found Longsword +1 2593 | -10/Exiles | Warned to stay clear of 0b10 Research branches 2628 | -10/Exiles | Exiles lab attacked by MAIN.C 2745 | -10/Exiles | Discovered new exit (range 12) 2769 | -10/Exiles | Left Exiles lab with Longsword +1 2769 | -10/Exiles | Entered Mines 2807 | -9/Mines | Met a Derelict bent on vengeance 3222 | -9/Mines | Assembled infested the area 3277 | -9/Mines | Identified Exp. Sensor Array 3281 | -9/Mines | Core integrity fell below 50% 3313 | -9/Mines | Lost 4 parts (1p2n1w) 3332 | -9/Mines | Core integrity fell below 20% 3341 | -9/Mines | Destroyed by Dirty Bomb Trap Last Messages --------------- 03280_ Dropped Longsword +1. 03281_ Slammed into R-06 Scavenger. 03281_ Destabilizing: Core damaged (-7). 03281_ R-06 Scavenger collects Longsword +1. 03282_ Ion Engine destroyed. 03282_ System corrupted by crushing effect (+2). 03282_ Slammed into R-06 Scavenger. 03282_ R-06 Scavenger destroyed. 03283_ Slammed into R-06 Scavenger. 03300_ System corrupted: Substantial component data lost. 03310_ 96-FFN(g): "TASTE MY VENGEANCE!" 03316_ 96-FFN(g): "VENGEANCE!" [Achievement: Slippery One] 03329_ Seismic Detector destroyed. 03329_ System corrupted by crushing effect (+5). 03329_ as-77348 shuts down. 03336_ KTK=90YOC1P0C56H5:YXCHZT0Q4G 03341_ as-36977 triggered Dirty Bomb Trap. 03341_ An explosion rips through the floor. 03341_ as-58076 destroyed. Map ----- +----------------------------------------------------+ | ??????????????????????????????????????# #???????? | | ??????????????????????????????????????# #???????? | | ???????????????????????????????????#### ##??????? | | ???????????????????????????????????# #??????? | | ???????????????????????????????????# """ #??????? | | ???????????????????????????????????# """ #??????? | | ???????????????????????????????????# """ #??????? | | ???????????????????????????####????# #??????? | | ??????????????????????????## ##???## ####??????? | | ??????????????????????????# #????# #?????????? | | ??????????????????????????# ##???# #????????## | | ???????????????????????????# #???# #???????## | | ???????????????????????????# #???# #??????## | | ??????????????????????????## ##### ######## | | ?????????????????????????## s s ## | | ????????????????????????## s ## | | ????????????????????????# #### ###### | | ????????????????????????# ##??# #????### #### | | ?????????#####??????????## #???# #??????# ##??# | | ?????????? ###????????# ##### #??????# #???? | | ?????????? ##??????## #??????# #???? | | ??????????? ##????## ############# #???? | | ??????????? #???## #??# #???? | | ???????????# ???## ##??# ##########???? | | ???????????# ???# a ##???# #????????????? | | ???????????# ????# @ #???# #????????????? | | ???????????# ?????# ; ; #???# #????????????? | | ??????????## #?????# # a#?##### ############## | | ????????### ##????# #^ # | | ????????# ####?# ## ? ? ? # | | ???????# ## ### ######## ######### # | | ????# #?## ## ##??????# #???????# | | ???# ???# [ #### ##???????# #???????### | | ???# $????# %##??# % ##???????# #?????????# | | ??# ?????# ######! ####????# #?????????# | | ? ??????# !*[!*%&*! #????# #?????????# | | ##??????# &&!!*%%= #???# #?????????# | | ? ## #????????## ######### #??# #?????????? | | ???# ??????????# #????????## #??# #?????????? | | ???# ???????????# ??????????#? #??# #?????????? | | ???#???????????? ???????????# ##??# #?????????? | | ???????????????? ##??????????? #???# #?????????? | | ??????????????? ##????????????? #???# #?????????? | | ??????????????? #????????????????#???# #?????????? | | ???????????????#?????????????????????# ########??? | | ?????????????????????????????????????# #??? | | ?????????????????????????????????????######## #??# | | ????????????????????????????????????????????# #### | | ????????????????????????????????????????????# | | ????????????????????????????????????????????##### | +----------------------------------------------------+ Best States ------------- Heat Dissipation 25 Energy Generation 10 Energy Capacity 250 Matter Stores 300 Matter Capacity 300 Sight Range 16 Robot Scan Range 20 Terrain Scan Density 10 Evasion (%) 50 Recoil Reduction 2 Item Schematics ----------------- None Robot Schematics ------------------ None Fabricated ------------ Nothing Alien Tech Used ----------------- None Achievements -------------- Armchair Analyst Slippery One Challenges ------------ None Game ------ Seed BehemothScrapSpecial Manual? 0 Play Time 00:23:37 Cumulative 13.5 hours Start 2024.07.25 @ 08:07:18 End 2024.07.25 @ 08:32:00 Sessions 1 Manual Loads 0 Difficulty Rogue Special Mode None Game No. 20 Rogue 20 Adventurer 0 Explorer 0 Win Type - Total 0 Types 0/0/0/0/0/0/0/0/0 Lore% 12 Gallery% 19 Achievement% 19 Wizard Run 0 Options --------- Layout 0 ASCII 0 Keyboard 1 Movement Numpad Keybinds 1 Fullscreen 2 Font 24/Smallcaps Map View 76x50 Zoom Use 18% Tactical HUD 1 Map Filters NONE Filters NONE Steam 1 RUN: ced75610-c1b3-424a-9437-e27f46f710d7